bitfinex/quotes_ETHUSD_20240711
["timestamp","ask_amount","ask_price","bid_price","bid_amount"]
[1720676643667,0.55,3102.6,3101.5,0.257724]
[1720676643880,0.08059647,3102.5,3101.5,0.257724]
[1720676644092,0.55,3102.4,3101.5,0.257724]
[1720676648203,0.08059635,3102.3,3101.5,0.257724]
[1720676648505,0.55,3102.2,3101.4,2.57724]
[1720676648656,0.55,3102.4,3101.4,2.57724]
[1720676648862,0.08060283,3102.3,3101.4,2.3246]
[1720676649574,2.09860283,3102.3,3101.4,2.3246]
[1720676649869,0.08060278,3102.2,3101.4,2.3246]
[1720676653878,0.55,3102.4,3101.4,2.3246]
[1720676654073,0.55,3102.4,3101.4,2.55706]
[1720676654328,3.55,3102.6,3101.4,2.55706]
[1720676654492,0.08059924,3102.5,3101.4,2.55706]
[1720676654814,0.841,3102.0,3101.4,2.55706]
[1720676655015,0.841,3101.8,3101.4,2.55706]
[1720676655397,0.841,3102.0,3101.5,0.255706]
[1720676657441,0.841,3102.0,3101.4,2.3246]
[1720676657806,0.841,3101.8,3101.4,2.3246]
[1720676658339,0.841,3102.1,3101.4,2.3246]
[1720676660214,0.841,3102.3,3101.4,2.3246]
[1720676660417,0.841,3102.3,3101.5,2.48686]
[1720676660648,0.841,3102.3,3101.5,2.2544]
[1720676660868,7.44,3103.2,3101.7,2.2544]
[1720676661014,0.841,3102.8,3101.7,2.2544]
[1720676661214,0.841,3102.8,3101.9,2.2544]
[1720676661816,0.841,3102.6,3101.9,2.2544]
[1720676662020,0.841,3102.2,3101.9,2.2544]
[1720676662261,0.841,3102.4,3101.9,2.2544]
[1720676662756,3.0,3103.0,3101.9,2.2544]
[1720676662943,1.25375801,3102.9,3101.9,2.47984]
[1720676663256,0.55,3102.9,3101.9,2.2544]
[1720676666032,0.55,3103.0,3101.9,2.2544]
[1720676666239,3.0,3103.2,3101.9,2.2544]
[1720676666429,0.08058001,3103.2,3101.9,2.2544]
[1720676666629,2.017,3103.3,3101.9,2.47984]
[1720676666630,0.209758,3103.1,3101.9,2.47984]
[1720676667553,0.55,3103.0,3101.9,2.47984]
[1720676668132,3.0,3103.2,3101.9,2.47984]
[1720676668325,2.017,3103.3,3101.9,2.47984]
[1720676668641,0.55,3103.2,3101.9,2.47984]
[1720676668841,0.2567,3103.1,3102.1,2.4962]
[1720676669042,0.55,3103.0,3102.1,2.4962]
[1720676669760,0.55,3103.1,3102.1,2.4962]
[1720676670347,0.08058384,3103.0,3102.1,2.4962]
[1720676670547,0.55,3102.9,3102.1,2.4962]
[1720676671680,0.55,3103.1,3102.1,2.4962]
[1720676671829,1.1067,3103.1,3102.1,2.4962]
[1720676672664,4.59528642,3103.1,3102.1,2.4962]
[1720676672848,3.0,3103.0,3102.1,2.4962]
[1720676673052,0.55,3102.9,3102.1,2.4962]
[1720676673233,2.567,3102.9,3102.1,2.4962]
[1720676673559,0.56475916,3102.8,3102.1,2.4962]
[1720676673763,0.55,3102.7,3102.1,2.4962]
[1720676675671,3.56475916,3102.8,3102.1,2.4962]
[1720676675828,3.0,3102.8,3102.1,2.4962]
[1720676676032,0.5567,3103.1,3102.1,2.4962]
[1720676677069,0.55,3103.0,3102.1,2.4962]
[1720676677469,0.55,3103.1,3102.1,2.4962]
[1720676677677,0.33778222,3102.9,3102.1,2.4962]
[1720676685438,0.03263481,3102.8,3102.1,2.4962]
[1720676686360,0.58263481,3102.8,3102.1,2.4962]
[1720676688183,0.55,3102.8,3102.1,2.74582]
[1720676688398,2.57872193,3102.8,3102.1,2.74582]
[1720676689177,0.55,3102.8,3102.1,2.74582]
[1720676690448,0.33778222,3102.9,3102.1,2.74582]
[1720676690647,0.0577,3102.8,3102.2,2.547782]
[1720676690866,0.6077,3102.8,3102.2,2.547782]
[1720676691888,2.63642193,3102.8,3102.2,2.547782]
[1720676692098,0.6077,3102.8,3102.2,2.547782]
[1720676692461,2.63642193,3102.8,3102.2,2.547782]
[1720676692792,2.63642193,3102.8,3102.2,2.2732]
[1720676695009,0.6077,3102.8,3102.2,2.2732]
[1720676695778,2.63634208,3102.8,3102.2,2.2732]
[1720676695977,0.6077,3102.8,3102.2,2.2732]
[1720676696269,2.63634208,3102.8,3102.2,2.2732]
[1720676696602,2.63634208,3102.8,3102.2,2.50052]
[1720676698307,0.6077,3102.8,3102.2,2.50052]
[1720676698483,0.0577,3102.8,3102.2,2.50052]
[1720676698688,2.08693932,3102.8,3102.2,2.50052]
[1720676698898,0.0577,3102.8,3102.2,2.50052]
[1720676699208,2.08693932,3102.8,3102.3,0.250052]
[1720676699415,2.08693932,3102.8,3101.4,2.3744]
[1720676700558,0.55,3102.7,3101.4,2.3744]
[1720676700704,0.55,3102.7,3101.5,0.84]
[1720676700705,2.02923932,3102.6,3101.5,0.84]
[1720676701020,0.55,3102.5,3101.6,2.3744]
[1720676701319,0.55,3102.5,3101.8,2.3297]
[1720676701481,0.88778972,3102.5,3101.8,2.3297]
[1720676702418,0.33778972,3102.5,3101.8,2.3297]
[1720676704106,0.33778972,3102.5,3101.8,5.3297]
[1720676704288,0.33778972,3102.5,3101.9,2.4588]
[1720676704483,0.33778972,3102.5,3102.1,2.4588]
[1720676707654,0.33778972,3102.5,3102.2,2.4965]
[1720676708011,0.0577,3102.8,3102.4,2.4965]
[1720676708215,0.0577,3102.8,3102.4,3.0]
[1720676708444,0.0577,3102.8,3102.5,2.4965]
[1720676708752,0.0577,3102.8,3102.6,2.99215]
[1720676708953,0.0577,3102.8,3102.7,3.0]
[1720676709159,0.0577,3102.8,3102.7,2.4425]
[1720676709453,0.0577,3102.8,3102.7,5.4425]
[1720676709826,0.0577,3102.8,3102.7,2.4425]
[1720676711111,0.0577,3102.8,3102.2,2.3118]
[1720676711331,0.0577,3102.8,3102.3,0.53118]
[1720676711535,0.0577,3102.8,3102.2,2.3118]
[1720676711736,2.5806403,3102.7,3102.2,2.3118]
[1720676712051,2.0306403,3102.6,3102.2,2.3118]
[1720676712352,2.5806403,3102.7,3102.2,2.3118]
[1720676712655,2.58099913,3102.7,3102.2,2.3118]
[1720676712956,2.58099913,3102.7,3102.2,2.54298]
[1720676713247,2.03099913,3102.6,3102.2,2.3118]
[1720676713409,2.58099913,3102.7,3102.2,2.3118]
[1720676714059,0.55,3102.7,3102.2,2.3118]
[1720676714259,2.58101911,3102.7,3102.2,2.3118]
[1720676714621,0.55,3102.7,3102.2,2.3118]
[1720676714819,0.55,3102.7,3102.2,2.54298]
[1720676715333,0.0577,3102.8,3102.2,2.54298]
[1720676716960,0.0577,3102.8,3102.4,2.4923]
[1720676723461,2.08857359,3102.8,3102.2,0.23118]
[1720676723761,2.58087359,3102.7,3102.0,2.3097]
[1720676724073,2.03166364,3102.6,3102.0,3.27504326]
[1720676724221,2.03166364,3102.5,3102.0,3.27504326]
[1720676724423,0.55,3102.7,3102.0,3.27504326]
[1720676724424,2.36942182,3102.6,3102.0,3.27504326]
[1720676724618,0.33775818,3102.6,3102.0,3.27504326]
[1720676726124,2.36942182,3102.6,3102.0,3.27504326]
[1720676726662,0.33775818,3102.6,3102.0,3.27504326]
[1720676726961,2.36942182,3102.6,3102.1,1.06187759]
[1720676727460,2.36931552,3102.6,3102.1,1.06187759]
[1720676727963,0.33775818,3102.6,3102.1,1.06187759]
[1720676729770,0.33775818,3102.6,3101.8,2.4094]
[1720676729978,0.33775818,3102.6,3101.9,2.4094]
[1720676734483,0.33775818,3102.6,3101.9,4.4264]
[1720676734694,0.33775818,3102.6,3102.1,2.4551]
[1720676739699,0.0577,3102.8,3102.1,2.4551]
[1720676739867,0.0577,3102.8,3102.4,2.4585]
[1720676740196,0.0577,3102.8,3102.5,2.4585]
[1720676740396,0.0577,3102.8,3102.5,3.0]
[1720676740632,0.0577,3102.8,3102.6,2.4523]
[1720676742599,0.0577,3102.8,3102.7,4.4916]
[1720676742773,0.0577,3102.8,3102.7,8.263069]
[1720676747100,0.33762788,3103.5,3102.8,2.3604]
[1720676747301,0.33762788,3103.5,3103.0,2.3604]
[1720676747531,0.33762788,3103.5,3103.3,2.3604]
[1720676747709,0.33762788,3103.5,3103.3,5.3604]
[1720676748043,0.33762788,3103.5,3103.4,0.73774]
[1720676748196,0.33762788,3103.5,3103.4,3.73774]
[1720676748822,0.0529894,3104.3,3103.4,3.73774]
[1720676749700,0.33758475,3104.2,3103.4,3.73774]
[1720676750101,0.33758475,3104.2,3103.5,2.3604]
[1720676750308,0.33758475,3104.2,3103.7,2.3604]
[1720676750801,0.33758475,3104.2,3103.7,5.3604]
[1720676753107,0.02898179,3104.1,3103.7,5.3604]
[1720676753318,0.33758475,3104.2,3103.7,5.3604]
[1720676753915,0.33758475,3104.2,3103.7,3.0]
[1720676754113,0.33758475,3104.2,3103.5,3.0]
[1720676754114,0.55,3104.1,3103.5,3.0]
[1720676754760,0.55,3104.1,3103.5,3.604524]
[1720676755051,2.36004081,3104.0,3103.0,9.6730326]
[1720676755352,2.36004081,3104.0,3102.7,0.771469]
[1720676755353,2.2795,3104.0,3102.7,0.771469]
[1720676755559,2.2795,3104.0,3102.6,2.4676]
[1720676755560,0.55,3103.9,3102.6,2.4676]
[1720676756453,0.55,3103.9,3102.4,2.017]
[1720676756838,0.55,3103.9,3102.4,5.017]
[1720676757167,0.28295,3103.8,3102.5,0.72898]
[1720676757331,0.55,3103.7,3102.5,3.72898]
[1720676758172,2.2795,3104.0,3102.6,2.4156]
[1720676758173,0.55,3103.9,3102.6,2.4156]
[1720676758471,0.55,3103.9,3102.6,5.4156]
[1720676758674,0.55,3103.9,3102.7,0.914458]
[1720676758832,0.55,3103.9,3102.7,3.914458]
[1720676759353,0.0529894,3104.3,3102.7,3.914458]
[1720676759354,2.4802894,3104.3,3102.8,2.017]
[1720676759543,2.4802894,3104.3,3102.8,5.017]
[1720676759974,2.4658,3104.1,3102.8,5.017]
[1720676760164,0.28033848,3104.0,3102.9,0.5931458]
[1720676760473,0.28033848,3104.0,3102.9,3.5931458]
[1720676760675,0.55,3103.9,3102.9,3.5931458]
[1720676761032,0.55,3103.9,3102.9,0.5931458]
[1720676761434,2.4658,3104.1,3102.9,0.5931458]
[1720676761435,0.55,3104.0,3102.9,0.5931458]
[1720676761638,0.55,3104.0,3103.0,0.26101458]
[1720676763240,0.55,3104.0,3102.7,3.0]
[1720676763440,0.55,3104.0,3102.6,2.4156]
[1720676763952,2.4171,3103.9,3102.6,2.4156]
[1720676764152,0.55,3103.8,3102.5,3.0]
[1720676764359,0.55,3103.8,3102.4,5.017]
[1720676764581,0.29671,3103.7,3102.5,0.73616]
[1720676764741,0.55,3103.6,3102.5,3.73616]
[1720676765568,0.55,3103.7,3102.5,3.73616]
[1720676767041,0.55,3103.7,3102.6,2.4335]
[1720676767268,0.55,3103.7,3102.6,5.4335]
[1720676767575,0.55,3103.7,3102.7,0.916966]
[1720676767746,0.55,3103.7,3102.7,3.916966]
[1720676768952,2.4998,3103.6,3102.7,3.916966]
[1720676769281,0.55,3103.5,3102.8,3.0]
[1720676769492,0.55,3103.5,3102.5,3.0]
[1720676769686,0.55,3103.5,3102.4,5.017]
[1720676776197,2.4998,3103.6,3102.5,2.331]
[1720676776524,2.4998,3103.6,3102.6,0.7348]
[1720676777026,2.4998,3103.6,3102.6,3.7348]
[1720676778847,0.33761947,3103.8,3102.7,2.3596]
[1720676779148,0.33761947,3103.8,3102.8,2.017]
[1720676779304,0.33761947,3103.8,3102.8,5.017]
[1720676779501,0.33761947,3103.8,3102.9,1.03766]
[1720676779744,0.33761947,3103.8,3102.9,4.03766]
[1720676779907,2.3821,3104.0,3102.9,4.03766]
[1720676782606,0.55,3103.9,3102.9,4.03766]
[1720676782805,0.55,3103.9,3102.9,1.03766]
[1720676783108,0.55,3103.9,3103.0,0.403766]
[1720676784253,0.55,3103.9,3103.0,3.403766]
[1720676784611,2.3821,3104.0,3103.0,3.403766]
[1720676785454,2.82277155,3104.3,3103.0,3.403766]
[1720676785635,0.55,3104.2,3103.0,3.403766]
[1720676785845,0.55,3104.2,3103.1,0.5809566]
[1720676788120,0.39057155,3104.3,3103.2,2.4751]
[1720676788325,0.0529894,3104.3,3103.2,5.4751]
[1720676788625,0.3905442,3104.3,3103.2,5.4751]
[1720676788848,0.0529894,3104.3,3103.4,2.2706]
[1720676789058,0.0529894,3104.3,3103.4,5.2706]
[1720676791771,0.0529894,3104.3,3103.4,3.0]
[1720676791966,0.0529894,3104.3,3103.5,2.3135]
[1720676794867,0.0529894,3104.3,3103.7,2.4283]
[1720676795039,0.0529894,3104.3,3103.8,0.44453]
[1720676795679,0.0529894,3104.3,3103.8,3.44453]
[1720676799732,0.0529894,3104.3,3103.8,0.44453]
[1720676800066,0.55,3104.2,3103.5,3.0]
[1720676800233,0.55,3104.2,3103.3,0.60560566]
[1720676800436,0.55,3104.2,3103.1,2.4204]
[1720676801263,0.55,3104.2,3103.1,4.4374]
[1720676801805,0.55,3104.2,3103.2,3.0]
[1720676802907,0.0529894,3104.3,3103.5,2.017]
[1720676803709,0.0529894,3104.3,3103.4,3.0]
[1720676803998,0.0529894,3104.3,3103.5,0.52534]
[1720676804206,0.0529894,3104.3,3103.4,3.0]
[1720676804406,0.0529894,3104.3,3103.3,2.2534]
[1720676806786,0.0529894,3104.3,3103.5,2.017]
[1720676806993,0.0529894,3104.3,3103.6,2.38]
[1720676807321,0.0529894,3104.3,3103.6,5.38]
[1720676807481,0.0529894,3104.3,3103.7,0.7397]
[1720676807821,0.0529894,3104.3,3103.7,3.7397]
[1720676808714,2.4168894,3104.3,3103.7,3.7397]
[1720676808914,2.4168894,3104.3,3103.5,3.0]
[1720676809217,2.4168894,3104.3,3103.4,2.2571]
[1720676810015,2.4168894,3104.3,3103.2,3.0]
[1720676812125,0.55,3104.2,3103.2,3.0]
[1720676812290,2.4168894,3104.3,3103.2,3.0]
[1720676812291,0.0529894,3104.3,3103.3,2.3253]
[1720676812493,0.0529894,3104.3,3103.5,2.017]
[1720676812681,0.0529894,3104.3,3103.5,5.017]
[1720676813419,0.0529894,3104.3,3103.6,2.3253]
[1720676813619,0.0529894,3104.3,3103.6,5.3253]
[1720676818437,0.0529894,3104.3,3103.6,3.0]
[1720676818732,0.55,3104.2,3103.5,3.0]
[1720676818937,2.427,3104.1,3103.5,0.599603]
[1720676819421,2.427,3104.1,3103.2,3.0]
[1720676819619,2.427,3104.1,3103.1,5.017]
[1720676820129,0.55,3104.0,3103.1,5.017]
[1720676821243,0.55,3104.0,3103.0,2.4635]
[1720676824173,2.48754646,3103.9,3102.8,3.0]
[1720676824361,0.55,3103.8,3102.9,0.5017]
[1720676824665,0.55,3103.8,3103.0,2.3308]
[1720676824963,0.55,3103.8,3103.0,5.3308]
[1720676825321,4.43664596,3104.2,3103.0,5.3308]
[1720676825519,0.55,3104.1,3103.0,5.3308]
[1720676825825,0.55,3104.1,3103.1,0.58325]
[1720676826042,0.55,3104.1,3103.1,3.58325]
[1720676828490,2.08290931,3104.3,3103.2,2.4594]
[1720676828491,0.0529894,3104.3,3103.2,2.4594]
[1720676828701,0.0529894,3104.3,3103.2,5.4594]
[1720676828855,0.0529894,3104.3,3103.6,2.4938]
[1720676829191,0.0529894,3104.3,3103.6,5.4938]
[1720676834318,0.0529894,3104.3,3103.6,3.0]
[1720676834468,0.0529894,3104.3,3103.4,3.0]
[1720676834673,0.0529894,3104.3,3103.5,2.017]
[1720676834880,0.0529894,3104.3,3103.7,2.4015]
[1720676835235,0.0529894,3104.3,3103.7,5.4015]
[1720676842246,0.0529894,3104.3,3103.9,2.017]
[1720676842423,0.0529894,3104.3,3104.0,2.4591]
[1720676842623,0.0529894,3104.3,3104.0,5.4591]
[1720676842839,0.0529894,3104.3,3104.1,0.74761]
[1720676842999,0.0529894,3104.3,3104.1,3.74761]
[1720676843212,0.0529894,3104.3,3104.2,2.4203]
[1720676843390,0.0529894,3104.3,3104.2,5.4203]
[1720676844912,0.0529894,3104.3,3104.2,8.64174]
[1720676845241,0.0529894,3104.3,3104.2,6.681398]
[1720676845414,0.0529894,3104.3,3104.2,5.4203]
[1720676846545,0.0529894,3104.3,3104.2,3.0]
[1720676846922,0.0529894,3104.3,3104.1,0.74761]
[1720676849627,0.0529894,3104.3,3103.6,2.8016]
[1720676850660,0.0529894,3104.3,3103.6,0.5017]
[1720676850835,0.0529894,3104.3,3103.6,3.0]
[1720676851063,0.0529894,3104.3,3103.5,2.017]
[1720676851550,2.4178,3104.2,3103.5,2.017]
[1720676851754,2.4178,3104.2,3103.2,3.0]
[1720676852093,2.4178,3104.2,3103.1,2.017]
[1720676852395,2.4178,3104.2,3103.1,2.44869]
[1720676852396,0.55,3104.1,3103.1,2.44869]
[1720676853672,2.4178,3104.2,3103.1,5.44869]
[1720676854298,0.0529894,3104.3,3103.1,5.44869]
[1720676854466,0.0529894,3104.3,3103.5,2.017]
[1720676856997,0.0529894,3104.3,3103.6,2.3158]
[1720676857205,0.0529894,3104.3,3103.6,5.3158]
[1720676857389,0.0529894,3104.3,3103.6,3.0]
[1720676857593,0.0529894,3104.3,3103.5,2.017]
[1720676857772,0.0529894,3104.3,3103.6,0.5017]
[1720676857978,0.0529894,3104.3,3103.6,3.5017]
[1720676865485,2.4908,3104.2,3103.6,3.5017]
[1720676865792,2.4908,3104.2,3103.7,3.0]
[1720676865986,2.4908,3104.2,3103.2,3.81635023]
[1720676866387,0.55,3104.1,3103.2,3.81635023]
[1720676868379,2.2596,3104.0,3103.2,3.81635023]
[1720676868585,2.2596,3103.8,3102.7,9.3607326]
[1720676869718,2.2596,3103.8,3102.7,7.3437326]
[1720676869919,0.55,3103.7,3102.8,3.0]
[1720676870123,2.2723,3103.6,3102.8,5.28037326]
[1720676870327,2.2723,3103.6,3102.7,7.3437326]
[1720676870530,0.55,3103.5,3102.7,7.3437326]
[1720676870827,0.55,3103.5,3102.5,2.017]
[1720676871516,2.4011,3103.4,3102.5,2.017]
[1720676872104,2.4011,3103.4,3102.3,3.0]
[1720676872296,2.4011,3103.4,3102.4,1.03437326]
[1720676873797,2.4011,3103.4,3102.1,2.017]
[1720676874002,2.3362,3103.2,3101.6,7.3437326]
[1720676874202,2.3362,3103.0,3101.3,4.4792]
[1720676874405,2.3768,3102.8,3101.3,4.4792]
[1720676874833,2.3768,3102.8,3101.7,2.017]
[1720676875037,2.3768,3102.8,3101.8,0.2017]
[1720676875591,0.55,3102.7,3101.8,0.2017]
[1720676878647,2.393,3102.6,3101.8,0.2017]
[1720676879044,2.393,3102.6,3101.4,3.0]
[1720676879362,0.55,3102.5,3101.4,3.0]
[1720676879564,0.55,3102.5,3101.3,2.017]
[1720676879755,2.3918,3102.4,3101.3,2.017]
[1720676884274,2.3918,3102.4,3101.2,3.0]
[1720676884478,2.3918,3102.4,3101.3,1.03437326]
[1720676885164,2.3918,3102.4,3101.3,5.44037326]
[1720676885360,2.3918,3102.4,3101.4,3.0]
[1720676891706,2.3892,3102.2,3101.4,3.0]
[1720676891872,2.3892,3102.2,3101.3,1.03437326]
[1720676892071,2.3892,3102.2,3101.4,0.40343733]
[1720676895810,2.3892,3102.2,3101.1,7.3437326]
[1720676895986,2.4073,3102.0,3101.1,7.3437326]
[1720676898578,2.4073,3102.0,3101.2,3.0]
[1720676899299,2.4073,3102.0,3101.0,5.4779]
[1720676899482,2.4073,3102.0,3101.1,0.74949]
[1720676899690,2.4073,3102.0,3101.1,3.74949]
[1720676901875,2.4073,3102.0,3101.1,0.74949]
[1720676902517,2.4073,3102.0,3100.9,3.0]
[1720676903808,2.4073,3102.0,3101.0,2.4929]
[1720676904224,2.4073,3102.0,3101.0,5.4929]
[1720676904792,2.4073,3102.0,3101.0,3.0]
[1720676904979,2.4073,3102.0,3100.9,2.017]
[1720676905179,2.4073,3102.0,3101.0,0.5017]
[1720676905388,2.4073,3102.0,3101.0,3.5017]
[1720676905828,2.9875,3101.9,3101.0,0.5017]
[1720676906149,2.9875,3101.9,3100.6,3.0]
[1720676906629,2.9875,3101.9,3100.4,4.2923]
[1720676906630,2.9875,3101.9,3100.5,3.0]
[1720676906782,2.9875,3101.9,3100.4,2.2753]
[1720676907734,2.9875,3101.9,3100.2,7.3437326]
[1720676907735,2.45861159,3101.8,3100.2,7.3437326]
[1720676907935,2.75736159,3101.8,3100.2,10.56051132]
[1720676908228,2.4819,3101.6,3100.2,10.56051132]
[1720676908430,2.4819,3101.6,3100.2,3.21677872]
[1720676908626,2.4819,3101.4,3100.0,15.0]
[1720676909008,2.4819,3101.2,3100.0,15.0]
[1720676909397,2.2564,3101.0,3100.0,15.0]
[1720676909732,2.2564,3100.8,3100.0,15.0]
[1720676910462,2.2927,3101.2,3100.4,2.017]
[1720676910615,2.2927,3101.2,3100.5,0.2017]
[1720676911316,2.2927,3101.2,3100.8,2.017]
[1720676916917,2.2927,3101.2,3100.5,3.2017]
[1720676920445,2.2927,3101.2,3100.4,9.3607326]
[1720676920647,0.55,3101.1,3100.4,9.3607326]
[1720676920850,2.3602,3101.0,3100.4,9.3607326]
[1720676921190,2.3602,3100.8,3100.4,7.3437326]
[1720676922824,2.3602,3100.8,3100.0,24.3607326]
[1720676923035,2.3602,3100.8,3100.0,20.23377872]
[1720676923240,2.3602,3100.8,3100.1,3.0]
[1720676923746,2.3602,3100.8,3100.0,17.017]
[1720676924272,0.55,3100.7,3100.0,17.017]
[1720676926549,2.4442,3100.6,3100.0,17.017]
[1720676926970,2.4442,3100.6,3100.0,15.0]
[1720676927876,0.33791834,3100.5,3100.0,15.0]
[1720676929079,0.33791834,3100.5,3100.1,1.5]
[1720676932504,0.33791834,3100.5,3100.0,17.017]
[1720676933243,0.33791834,3100.5,3100.1,3.0]
[1720676934867,0.33791834,3100.5,3100.0,17.017]
[1720676937487,0.33791834,3100.5,3100.1,2.3894]
[1720676937687,0.33791834,3100.5,3100.1,5.3894]
[1720676937991,0.33791834,3100.5,3100.2,2.24064]
[1720676938325,0.33791834,3100.5,3100.2,5.24064]
[1720676938968,2.4118,3101.0,3100.2,5.24064]
[1720676939194,2.4118,3101.0,3100.4,2.017]
[1720676939384,0.3378796,3100.9,3100.4,2.017]
[1720676939713,0.3378796,3100.9,3100.5,0.5017]
[1720676939867,0.3378796,3100.9,3100.5,3.5017]
[1720676940412,2.434,3100.8,3100.2,2.24064]
[1720676942019,0.3378796,3100.9,3100.2,2.24064]
[1720676942020,0.3378796,3100.9,3100.4,2.017]
[1720676942220,0.3378796,3100.9,3100.4,4.3838]
[1720676942426,0.3378796,3100.9,3100.8,2.017]
[1720676942624,0.3378796,3100.9,3100.8,2.2187]
[1720676942832,2.7665796,3100.9,3100.8,0.2017]
[1720676943000,2.7665796,3100.9,3100.4,5.017]
[1720676944692,2.7665796,3100.9,3100.8,0.841]
[1720676946493,0.3378796,3100.9,3100.8,0.841]
[1720676952526,2.3261,3101.6,3100.8,0.841]
[1720676952714,2.3261,3101.6,3101.5,0.841]
[1720676953302,2.66393802,3101.6,3101.5,0.841]
[1720676954602,0.33783802,3101.6,3101.5,0.841]
[1720676954917,2.3407,3101.9,3101.5,0.841]
[1720676955115,2.3407,3101.9,3101.8,0.841]
[1720676960647,2.75251366,3102.1,3101.8,0.841]
[1720676960832,2.75251366,3102.1,3102.0,0.841]
[1720676961153,3.02776503,3102.1,3102.0,0.841]
[1720676961337,2.75251366,3102.1,3102.0,0.841]
[1720676964372,2.75251366,3102.1,3101.8,0.841]
[1720676965634,0.55,3102.0,3101.8,0.841]
[1720676976754,2.75251366,3102.1,3101.8,0.841]
[1720676977077,0.33781366,3102.1,3102.0,0.841]
[1720676977778,0.33781366,3102.1,3101.6,2.4092]
[1720676977958,0.33781366,3102.1,3102.0,0.841]
[1720676980550,0.33781366,3102.1,3102.0,1.16436]
[1720676980752,2.03103305,3102.5,3102.0,1.16436]
[1720676981082,2.03103305,3102.6,3102.4,0.841]
[1720676981245,2.03103305,3102.5,3102.4,0.841]
[1720676981659,0.3377612,3102.5,3102.4,0.841]
[1720676988517,2.0292863,3103.2,3102.4,0.841]
[1720676988717,2.3269,3103.4,3103.1,0.841]
[1720676988718,2.0292863,3103.3,3103.1,0.841]
[1720676988937,0.33769565,3103.2,3103.1,0.841]
[1720676989642,0.33769565,3103.2,3102.9,0.841]
[1720676994834,0.33769565,3103.2,3103.1,0.841]
[1720677003382,0.33769565,3103.2,3103.1,3.2218]
[1720677003692,2.3284,3103.9,3103.1,3.54398]
[1720677003693,0.33763407,3103.8,3103.1,3.54398]
[1720677003918,0.33763407,3103.8,3103.6,0.841]
[1720677005699,0.33763407,3103.8,3103.6,3.2597]
[1720677010411,0.0529894,3104.3,3103.6,3.2597]
[1720677010582,0.33761026,3104.0,3103.9,0.841]
[1720677010772,0.88761026,3104.0,3103.9,0.841]
[1720677010977,0.33761026,3104.0,3103.9,0.841]
[1720677012475,0.0529894,3104.3,3103.9,3.3316]
[1720677012685,0.0529894,3104.3,3104.2,3.3316]
[1720677013423,0.0529894,3104.3,3104.2,6.3316]
[1720677013811,0.0529894,3104.3,3104.2,2.4906]
[1720677014009,0.0529894,3104.3,3104.2,3.3316]
[1720677014195,0.0529894,3104.3,3104.2,0.841]
[1720677015114,0.0529894,3104.3,3104.2,1.200486]
[1720677015824,0.0529894,3104.3,3104.2,3.585886]
[1720677017628,0.0529894,3104.3,3104.2,6.585886]
[1720677020641,0.33748272,3105.0,3104.3,2.4623]
[1720677020845,0.33748272,3105.0,3104.9,3.3033]
[1720677021027,0.33748272,3105.0,3104.9,3.63363]
[1720677022732,0.1039,3105.1,3104.9,3.63363]
[1720677023712,0.1039,3105.1,3104.9,1.17133]
[1720677023908,0.1039,3105.1,3105.0,2.4113]
[1720677024216,7.77741087,3106.3,3105.0,5.4113]
[1720677024416,2.2673,3106.6,3106.2,0.841]
[1720677025206,2.2673,3106.6,3105.6,2.4113]
[1720677025438,0.33738954,3106.7,3106.5,0.841]
[1720677026048,2.3735061,3107.4,3106.5,0.841]
[1720677026252,0.33734983,3107.0,3106.8,0.841]
[1720677026606,0.28734983,3107.0,3106.1,2.011]
[1720677026838,0.08047835,3106.9,3106.1,2.011]
[1720677027056,2.4145,3106.8,3105.7,2.011]
[1720677027661,0.08048168,3106.7,3105.7,2.011]
[1720677027804,0.24949817,3106.6,3105.7,2.011]
[1720677028011,0.24949817,3106.6,3105.3,2.011]
[1720677028012,0.6304952,3106.5,3105.3,2.011]
[1720677028227,0.65930839,3106.5,3105.3,2.011]
[1720677028553,0.57881319,3106.5,3105.3,2.011]
[1720677028904,0.08049513,3106.4,3105.3,2.011]
[1720677029131,0.55,3106.3,3105.4,0.43643]
[1720677029360,0.57873804,3106.3,3105.4,0.43643]
[1720677029852,2.46129521,3106.2,3105.4,0.43643]
[1720677030008,0.63049703,3106.3,3105.4,0.43643]
[1720677030210,0.02870851,3106.1,3105.4,0.43643]
[1720677030428,2.3201,3106.5,3105.5,0.244743]
[1720677030672,0.02870851,3106.0,3105.7,2.011]
[1720677030974,0.02870851,3105.9,3105.7,2.011]
[1720677031331,0.02870851,3105.8,3105.7,2.011]
[1720677031532,2.3201,3106.5,3105.7,2.011]
[1720677031729,0.23201,3106.4,3105.7,2.011]
[1720677031971,0.02870851,3106.4,3105.7,2.011]
[1720677032461,0.02870851,3106.4,3106.1,2.011]
[1720677032649,2.4162,3106.9,3106.1,2.011]
[1720677032845,0.02858505,3106.3,3106.1,2.011]
[1720677033184,0.02858505,3106.2,3105.8,2.4765]
[1720677033341,0.02858505,3106.2,3106.1,2.011]
[1720677033736,2.421,3107.2,3106.1,2.011]
[1720677034137,0.02866555,3107.1,3106.2,2.452]
[1720677034336,0.02866555,3107.1,3106.7,2.452]
[1720677034632,0.1134061,3107.4,3106.7,5.452]
[1720677034838,0.1134061,3107.4,3107.0,2.011]
[1720677035761,0.1134061,3107.4,3107.1,2.3148]
[1720677035968,0.005,3108.4,3107.1,2.3148]
[1720677036150,0.005,3108.4,3108.1,2.4026]